[Event "Late-Titled-Tuesday-Blitz-January-30-2024"]
[Site "Chess.com"]
[Date "2024.01.30"]
[Round "10"]
[White "Orest_Vovk"]
[Black "jinbojinbo"]
[Result "0-1"]
[WhiteElo "2495"]
[BlackElo "2629"]
[TimeControl "180+1"]
[EndTime "15:53:31 PST"]
[Termination "jinbojinbo won by resignation"]

1. h4 {[%clk 0:03:00.9]} 1... h5 {[%clk 0:02:58.9]} 2. Nf3 {[%clk 0:02:55.3]}
2... Nf6 {[%clk 0:02:58]} 3. Ng5 {[%clk 0:02:55.1]} 3... d5 {[%clk 0:02:55.6]}
4. e4 {[%clk 0:02:54.7]} 4... dxe4 {[%clk 0:02:54.3]} 5. Qe2 {[%clk 0:02:54.9]}
5... Bf5 {[%clk 0:02:52.2]} 6. Qb5+ {[%clk 0:02:54.7]} 6... Bd7 {[%clk
0:02:39.7]} 7. Qxb7 {[%clk 0:02:54.6]} 7... Nc6 {[%clk 0:02:39.3]} 8. Bb5 {[%clk
0:02:54.5]} 8... Rb8 {[%clk 0:02:32.5]} 9. Qxc6 {[%clk 0:02:54.1]} 9... Bxc6
{[%clk 0:02:30.9]} 10. Bxc6+ {[%clk 0:02:55]} 10... Nd7 {[%clk 0:02:31]} 11.
Nxe4 {[%clk 0:02:54.1]} 11... Rb6 {[%clk 0:02:26.8]} 12. Ba4 {[%clk 0:02:53.9]}
12... e6 {[%clk 0:02:01.4]} 13. Nbc3 {[%clk 0:02:49.8]} 13... Be7 {[%clk
0:02:01]} 14. d4 {[%clk 0:02:45.4]} 14... O-O {[%clk 0:01:59.9]} 15. Bb3 {[%clk
0:02:36.7]} 15... Nf6 {[%clk 0:01:59.4]} 16. Be3 {[%clk 0:02:27]} 16... Ng4
{[%clk 0:01:53.3]} 17. O-O-O {[%clk 0:02:19.1]} 17... Nxe3 {[%clk 0:01:49.3]}
18. fxe3 {[%clk 0:02:18.6]} 18... c6 {[%clk 0:01:47.5]} 19. g3 {[%clk 0:02:12]}
19... a5 {[%clk 0:01:46.9]} 20. Na4 {[%clk 0:02:08.5]} 20... Rb8 {[%clk
0:01:45.6]} 21. Nac5 {[%clk 0:02:07.1]} 21... g6 {[%clk 0:01:43.7]} 22. g4
{[%clk 0:02:04]} 22... hxg4 {[%clk 0:01:30.8]} 23. h5 {[%clk 0:02:04]} 23... Kg7
{[%clk 0:01:30.8]} 24. Bxe6 {[%clk 0:01:52.9]} 24... Bxc5 {[%clk 0:01:26]} 25.
Nxc5 {[%clk 0:01:50.7]} 25... Qg5 {[%clk 0:01:19.3]} 26. Rde1 {[%clk 0:01:22.7]}
26... Rbe8 {[%clk 0:01:19.3]} 27. Ne4 {[%clk 0:00:48.8]} 27... Qd8 {[%clk
0:01:18.2]} 28. hxg6 {[%clk 0:00:33.8]} 28... Rxe6 {[%clk 0:01:10.5]} 29. Rh7+
{[%clk 0:00:19.6]} 29... Kxg6 {[%clk 0:01:10]} 30. Reh1 {[%clk 0:00:18.5]} 30...
Rxe4 {[%clk 0:01:10]} 31. R7h6+ {[%clk 0:00:16.5]} 31... Kg7 {[%clk 0:01:09.4]}
0-1

[Event "Late-Titled-Tuesday-Blitz-January-30-2024"]
[Site "Chess.com"]
[Date "2024.01.30"]
[Round "10"]
[White "KorolDimitriy75"]
[Black "bn1462"]
[Result "1-0"]
[WhiteElo "2360"]
[BlackElo "1976"]
[TimeControl "180+1"]
[EndTime "15:53:31 PST"]
[Termination "KorolDimitriy75 won by resignation"]

1. d4 {[%clk 0:03:00.9]} 1... d5 {[%clk 0:02:59.2]} 2. c4 {[%clk 0:03:01.1]}
2... e6 {[%clk 0:02:58.9]} 3. Nc3 {[%clk 0:03:01.6]} 3... Nf6 {[%clk 0:02:58.4]}
4. Bg5 {[%clk 0:03:01.7]} 4... dxc4 {[%clk 0:02:51.5]} 5. e4 {[%clk 0:03:01.4]}
5... c5 {[%clk 0:02:42.2]} 6. Nf3 {[%clk 0:02:59]} 6... Nc6 {[%clk 0:02:32.9]}
7. d5 {[%clk 0:02:40.4]} 7... exd5 {[%clk 0:02:20.6]} 8. exd5 {[%clk 0:02:40.5]}
8... Qe7+ {[%clk 0:01:38.1]} 9. Be2 {[%clk 0:02:38.2]} 9... Ne5 {[%clk
0:01:30.7]} 10. O-O {[%clk 0:02:34.2]} 10... h6 {[%clk 0:01:12.9]} 11. Bh4
{[%clk 0:02:23.8]} 11... Ng6 {[%clk 0:00:44.1]} 12. Bxc4 {[%clk 0:01:51]} 12...
Nxh4 {[%clk 0:00:21.8]} 13. Re1 {[%clk 0:01:51]} 13... Nxf3+ {[%clk 0:00:18.3]}
14. Qxf3 {[%clk 0:01:51.2]} 14... Be6 {[%clk 0:00:12.2]} 15. dxe6 {[%clk
0:01:49.9]} 15... O-O-O {[%clk 0:00:12.9]} 16. exf7 {[%clk 0:01:38.9]} 16... Qc7
{[%clk 0:00:10.3]} 17. Nb5 {[%clk 0:01:26.5]} 17... Qb6 {[%clk 0:00:10.3]} 18.
Rad1 {[%clk 0:01:07]} 18... Rxd1 {[%clk 0:00:05.7]} 19. Qxd1 {[%clk 0:00:57]}
19... a6 {[%clk 0:00:06.1]} 20. Re8+ {[%clk 0:00:56.1]} 1-0

[Event "Late-Titled-Tuesday-Blitz-January-30-2024"]
[Site "Chess.com"]
[Date "2024.01.30"]
[Round "10"]
[White "only_strong_moves"]
[Black "GoltsevDmitry2000"]
[Result "0-1"]
[WhiteElo "2549"]
[BlackElo "2804"]
[TimeControl "180+1"]
[EndTime "15:53:32 PST"]
[Termination "GoltsevDmitry2000 won on time"]

1. e4 {[%clk 0:03:00]} 1... e6 {[%clk 0:03:00.5]} 2. d4 {[%clk 0:03:00]} 2... d5
{[%clk 0:03:01.4]} 3. Nd2 {[%clk 0:03:00]} 3... c5 {[%clk 0:03:01.9]} 4. Ngf3
{[%clk 0:03:00]} 4... Nf6 {[%clk 0:03:01.6]} 5. exd5 {[%clk 0:02:58.7]} 5...
exd5 {[%clk 0:03:02.5]} 6. Bb5+ {[%clk 0:02:57.3]} 6... Nc6 {[%clk 0:03:02.1]}
7. O-O {[%clk 0:02:57.3]} 7... Be7 {[%clk 0:03:02.2]} 8. dxc5 {[%clk 0:02:56.6]}
8... Bxc5 {[%clk 0:03:03.1]} 9. Nb3 {[%clk 0:02:56.2]} 9... Bb6 {[%clk 0:03:03]}
10. Re1+ {[%clk 0:02:55.9]} 10... Ne4 {[%clk 0:03:02.5]} 11. Be3 {[%clk
0:02:54.3]} 11... O-O {[%clk 0:03:02.4]} 12. c4 {[%clk 0:02:47.5]} 12... Be6
{[%clk 0:02:52.4]} 13. Nfd4 {[%clk 0:01:38.8]} 13... Ne5 {[%clk 0:02:21.8]} 14.
cxd5 {[%clk 0:00:33]} 14... Bxd5 {[%clk 0:02:19.4]} 15. f3 {[%clk 0:00:17]}
15... Ng5 {[%clk 0:02:10.7]} 16. f4 {[%clk 0:00:12.4]} 16... Bxg2 {[%clk
0:02:10.7]} 17. fxe5 {[%clk 0:00:07.5]} 17... Bd5 {[%clk 0:02:01]} 18. Qg4
{[%clk 0:00:07.3]} 18... Ne6 {[%clk 0:01:41.9]} 19. Nf5 {[%clk 0:00:06.3]} 19...
g6 {[%clk 0:01:35.6]} 20. Nh6+ {[%clk 0:00:05.5]} 20... Kh8 {[%clk 0:01:32]} 21.
Rad1 {[%clk 0:00:06.4]} 21... Bxe3+ {[%clk 0:01:30.3]} 22. Rxe3 {[%clk
0:00:06.1]} 22... Qb6 {[%clk 0:01:31.2]} 23. Rxd5 {[%clk 0:00:02.3]} 23... Qxe3+
{[%clk 0:01:30.8]} 24. Kh1 {[%clk 0:00:03.2]} 24... Qxh6 {[%clk 0:01:29.8]} 25.
Rd1 {[%clk 0:00:02.3]} 25... Rad8 {[%clk 0:01:29.7]} 26. Rf1 {[%clk 0:00:02.6]}
26... Qg5 {[%clk 0:01:27.2]} 27. Qf3 {[%clk 0:00:02.8]} 27... Qxe5 {[%clk
0:01:25.6]} 28. Bc4 {[%clk 0:00:03.7]} 28... Nd4 {[%clk 0:01:24.6]} 29. Nxd4
{[%clk 0:00:03.6]} 29... Rxd4 {[%clk 0:01:25.5]} 30. Bxf7 {[%clk 0:00:04]} 30...
Kg7 {[%clk 0:01:25.1]} 31. Qb3 {[%clk 0:00:03.3]} 31... Qe4+ {[%clk 0:01:23]}
0-1

[Event "Late-Titled-Tuesday-Blitz-January-30-2024"]
[Site "Chess.com"]
[Date "2024.01.30"]
[Round "10"]
[White "Beca95"]
[Black "pavet"]
[Result "1-0"]
[WhiteElo "2972"]
[BlackElo "2777"]
[TimeControl "180+1"]
[EndTime "15:53:38 PST"]
[Termination "Beca95 won on time"]

1. e4 {[%clk 0:02:53.5]} 1... e5 {[%clk 0:03:00]} 2. Nc3 {[%clk 0:02:49.1]} 2...
Nc6 {[%clk 0:03:00.2]} 3. f4 {[%clk 0:02:45.6]} 3... exf4 {[%clk 0:02:56.6]} 4.
d4 {[%clk 0:02:45.5]} 4... Qh4+ {[%clk 0:02:52.6]} 5. Ke2 {[%clk 0:02:45.5]}
5... d6 {[%clk 0:02:43.9]} 6. Nf3 {[%clk 0:02:44.7]} 6... Bg4 {[%clk 0:02:43.3]}
7. Nd5 {[%clk 0:02:43]} 7... O-O-O {[%clk 0:02:42]} 8. Bxf4 {[%clk 0:02:38.6]}
8... Nf6 {[%clk 0:02:37.9]} 9. Nxf6 {[%clk 0:02:35.2]} 9... Qxf6 {[%clk
0:02:32.3]} 10. Ke3 {[%clk 0:02:35.5]} 10... Bxf3 {[%clk 0:02:04.3]} 11. gxf3
{[%clk 0:02:33.3]} 11... g5 {[%clk 0:02:04.4]} 12. Bg3 {[%clk 0:02:33.6]} 12...
h5 {[%clk 0:02:04.2]} 13. c3 {[%clk 0:02:29.9]} 13... h4 {[%clk 0:01:53.3]} 14.
Bh3+ {[%clk 0:02:26.9]} 14... Kb8 {[%clk 0:01:53]} 15. Bf2 {[%clk 0:02:27]}
15... Bg7 {[%clk 0:01:38.9]} 16. Kd2 {[%clk 0:02:20.1]} 16... Rhe8 {[%clk
0:01:35.2]} 17. Kc2 {[%clk 0:02:19.3]} 17... Ne7 {[%clk 0:01:32.7]} 18. Qd3
{[%clk 0:02:18.2]} 18... Ng6 {[%clk 0:01:32.5]} 19. Bf5 {[%clk 0:02:14.6]} 19...
Nf4 {[%clk 0:01:31.7]} 20. Qd2 {[%clk 0:02:14.9]} 20... d5 {[%clk 0:01:31.4]}
21. Be3 {[%clk 0:02:14.6]} 21... dxe4 {[%clk 0:01:31.6]} 22. fxe4 {[%clk
0:02:15.5]} 22... Bh6 {[%clk 0:01:29.4]} 23. b4 {[%clk 0:02:08.3]} 23... Qc6
{[%clk 0:01:27.4]} 24. Bxf4 {[%clk 0:02:07.2]} 24... gxf4 {[%clk 0:01:27.6]} 25.
Qd3 {[%clk 0:02:07.8]} 25... Bg7 {[%clk 0:01:24.2]} 26. Kb3 {[%clk 0:02:07.8]}
26... Qb6 {[%clk 0:01:14.6]} 27. Qc4 {[%clk 0:02:01.9]} 27... Bxd4 {[%clk
0:00:41.3]} 28. cxd4 {[%clk 0:02:01.5]} 28... Rxd4 {[%clk 0:00:42.2]} 29. Qc5
{[%clk 0:02:01.8]} 29... Rd3+ {[%clk 0:00:31.3]} 30. Kc2 {[%clk 0:02:01.8]}
30... Qa6 {[%clk 0:00:29.4]} 31. b5 {[%clk 0:02:00.5]} 31... Qa4+ {[%clk
0:00:11.9]} 32. Kxd3 {[%clk 0:02:00]} 32... Rd8+ {[%clk 0:00:12.2]} 33. Kc3
{[%clk 0:02:00.6]} 33... Qa5+ {[%clk 0:00:11]} 34. Kb2 {[%clk 0:01:38.9]} 34...
Qd2+ {[%clk 0:00:07.2]} 35. Qc2 {[%clk 0:01:37.6]} 35... Qb4+ {[%clk 0:00:07.4]}
36. Qb3 {[%clk 0:01:37.9]} 36... Rd2+ {[%clk 0:00:06.5]} 37. Kb1 {[%clk
0:01:35.6]} 37... Qd4 {[%clk 0:00:06.8]} 38. Rc1 {[%clk 0:01:34.6]} 38... f3
{[%clk 0:00:02.5]} 39. Qc3 {[%clk 0:01:34.2]} 1-0

[Event "Late-Titled-Tuesday-Blitz-January-30-2024"]
[Site "Chess.com"]
[Date "2024.01.30"]
[Round "10"]
[White "temus_galaktionov"]
[Black "Defend1r"]
[Result "1-0"]
[WhiteElo "2875"]
[BlackElo "2555"]
[TimeControl "180+1"]
[EndTime "15:53:52 PST"]
[Termination "temus_galaktionov won by checkmate"]

1. d4 {[%clk 0:02:51.3]} 1... Nf6 {[%clk 0:02:57.5]} 2. Nf3 {[%clk 0:02:45.5]}
2... e6 {[%clk 0:02:56.8]} 3. c4 {[%clk 0:02:38.9]} 3... d5 {[%clk 0:02:56.8]}
4. Nc3 {[%clk 0:02:38.6]} 4... Be7 {[%clk 0:02:53.6]} 5. Bf4 {[%clk 0:02:28.8]}
5... O-O {[%clk 0:02:47.9]} 6. e3 {[%clk 0:02:28.5]} 6... b6 {[%clk 0:02:44.1]}
7. Bd3 {[%clk 0:02:27.9]} 7... dxc4 {[%clk 0:02:43.3]} 8. Bxc4 {[%clk
0:02:28.8]} 8... a6 {[%clk 0:02:32.7]} 9. O-O {[%clk 0:02:28.2]} 9... Bb7 {[%clk
0:02:32.8]} 10. Qe2 {[%clk 0:02:26.6]} 10... Nh5 {[%clk 0:01:42.6]} 11. Be5
{[%clk 0:02:21.3]} 11... Nd7 {[%clk 0:01:40.7]} 12. Rfd1 {[%clk 0:02:19.7]}
12... b5 {[%clk 0:01:17.7]} 13. Bb3 {[%clk 0:02:14.8]} 13... Bd6 {[%clk
0:01:08.7]} 14. Rac1 {[%clk 0:02:04]} 14... Qe7 {[%clk 0:01:07]} 15. h3 {[%clk
0:01:47]} 15... Nhf6 {[%clk 0:01:03.3]} 16. e4 {[%clk 0:01:44.3]} 16... b4
{[%clk 0:00:49]} 17. Bxd6 {[%clk 0:01:28.3]} 17... cxd6 {[%clk 0:00:48.1]} 18.
e5 {[%clk 0:01:28.8]} 18... dxe5 {[%clk 0:00:37.1]} 19. dxe5 {[%clk 0:01:29.7]}
19... bxc3 {[%clk 0:00:37]} 20. exf6 {[%clk 0:01:29.6]} 20... Nxf6 {[%clk
0:00:36.6]} 21. Rxc3 {[%clk 0:01:29.2]} 21... Rac8 {[%clk 0:00:33.3]} 22. Rdc1
{[%clk 0:01:27]} 22... Rxc3 {[%clk 0:00:32.9]} 23. Rxc3 {[%clk 0:01:27.9]} 23...
Nd5 {[%clk 0:00:24.6]} 24. Bxd5 {[%clk 0:01:19]} 24... Bxd5 {[%clk 0:00:25.5]}
25. Qxa6 {[%clk 0:01:19.1]} 25... Qb4 {[%clk 0:00:25]} 26. Qa3 {[%clk
0:01:14.3]} 26... Qe4 {[%clk 0:00:20.5]} 27. b3 {[%clk 0:01:09.7]} 27... h5
{[%clk 0:00:16.6]} 28. Qc1 {[%clk 0:01:07.6]} 28... Ra8 {[%clk 0:00:14.9]} 29.
Rc8+ {[%clk 0:01:07.1]} 29... Rxc8 {[%clk 0:00:14.8]} 30. Qxc8+ {[%clk 0:01:08]}
30... Kh7 {[%clk 0:00:15.2]} 31. Ng5+ {[%clk 0:01:08.7]} 31... Kg6 {[%clk
0:00:12.4]} 32. Nxe4 {[%clk 0:01:09.6]} 32... Bxe4 {[%clk 0:00:12.5]} 33. b4
{[%clk 0:01:08.6]} 33... Bxg2 {[%clk 0:00:11.4]} 34. Kxg2 {[%clk 0:01:07.9]}
34... h4 {[%clk 0:00:12.3]} 35. b5 {[%clk 0:01:07.9]} 35... Kf5 {[%clk
0:00:12.7]} 36. Qc5+ {[%clk 0:01:07.8]} 36... Kf6 {[%clk 0:00:12.7]} 37. b6
{[%clk 0:01:08.1]} 37... g5 {[%clk 0:00:12.7]} 38. b7 {[%clk 0:01:08.8]} 38...
g4 {[%clk 0:00:13.2]} 39. b8=Q {[%clk 0:01:09.2]} 39... gxh3+ {[%clk 0:00:12.2]}
40. Kxh3 {[%clk 0:01:10.1]} 40... Kg6 {[%clk 0:00:12.6]} 41. Qg8+ {[%clk
0:01:09.5]} 41... Kf6 {[%clk 0:00:13.1]} 42. Qcg5# {[%clk 0:01:10.1]} 1-0

[Event "Late-Titled-Tuesday-Blitz-January-30-2024"]
[Site "Chess.com"]
[Date "2024.01.30"]
[Round "10"]
[White "crescentmoon2411"]
[Black "DenLaz"]
[Result "0-1"]
[WhiteElo "3012"]
[BlackElo "3060"]
[TimeControl "180+1"]
[EndTime "15:53:55 PST"]
[Termination "DenLaz won on time"]

1. d4 {[%clk 0:03:00.9]} 1... Nf6 {[%clk 0:02:59.2]} 2. c4 {[%clk 0:03:00.7]}
2... e6 {[%clk 0:02:59.5]} 3. Nc3 {[%clk 0:03:00.8]} 3... Bb4 {[%clk 0:03:00.1]}
4. e3 {[%clk 0:03:01.5]} 4... O-O {[%clk 0:03:00.3]} 5. Bd3 {[%clk 0:03:00.4]}
5... d5 {[%clk 0:03:00.7]} 6. a3 {[%clk 0:03:00]} 6... Bxc3+ {[%clk 0:02:59.9]}
7. bxc3 {[%clk 0:03:00.9]} 7... dxc4 {[%clk 0:03:00.4]} 8. Bxc4 {[%clk
0:03:01.7]} 8... c5 {[%clk 0:03:01.2]} 9. Ne2 {[%clk 0:03:02.2]} 9... Qc7 {[%clk
0:03:01.6]} 10. Qd3 {[%clk 0:03:02.2]} 10... Nc6 {[%clk 0:02:52.2]} 11. e4
{[%clk 0:02:58]} 11... Rd8 {[%clk 0:02:52.5]} 12. Ba2 {[%clk 0:02:57.4]} 12...
Qa5 {[%clk 0:02:52.2]} 13. O-O {[%clk 0:02:29.7]} 13... b6 {[%clk 0:02:51.6]}
14. f3 {[%clk 0:01:38.8]} 14... Ba6 {[%clk 0:02:47]} 15. Qe3 {[%clk 0:01:28]}
15... Bxe2 {[%clk 0:02:14.1]} 16. Qxe2 {[%clk 0:01:28.9]} 16... Qxc3 {[%clk
0:02:14.4]} 17. Bg5 {[%clk 0:01:05]} 17... Qxd4+ {[%clk 0:01:56.5]} 18. Kh1
{[%clk 0:01:04.5]} 18... h6 {[%clk 0:01:50.8]} 19. Bh4 {[%clk 0:00:56.5]} 19...
Qd2 {[%clk 0:01:48.9]} 20. Qa6 {[%clk 0:00:49.5]} 20... Ne5 {[%clk 0:01:44.2]}
21. f4 {[%clk 0:00:35.9]} 21... Neg4 {[%clk 0:01:32.6]} 22. e5 {[%clk
0:00:13.1]} 22... Ne3 {[%clk 0:01:32.5]} 23. Rf2 {[%clk 0:00:10.1]} 23... Qd1+
{[%clk 0:01:30.6]} 24. Rf1 {[%clk 0:00:07.7]} 24... Qg4 {[%clk 0:01:24.3]} 25.
Bg3 {[%clk 0:00:03.8]} 25... Nxf1 {[%clk 0:01:22.9]} 26. Rxf1 {[%clk 0:00:04.1]}
26... Ne4 {[%clk 0:01:23.4]} 27. f5 {[%clk 0:00:03.5]} 27... exf5 {[%clk
0:01:09.8]} 28. Qb7 {[%clk 0:00:03]} 28... Kh8 {[%clk 0:00:59.5]} 29. Qxf7
{[%clk 0:00:02]} 29... Rd1 {[%clk 0:00:56.7]} 0-1

[Event "Late-Titled-Tuesday-Blitz-January-30-2024"]
[Site "Chess.com"]
[Date "2024.01.30"]
[Round "10"]
[White "shirovin"]
[Black "finec2"]
[Result "1-0"]
[WhiteElo "2069"]
[BlackElo "2193"]
[TimeControl "180+1"]
[EndTime "15:53:59 PST"]
[Termination "shirovin won on time"]

1. e4 {[%clk 0:03:00.9]} 1... c5 {[%clk 0:02:59.4]} 2. Nf3 {[%clk 0:02:58.8]}
2... e6 {[%clk 0:02:59.3]} 3. g3 {[%clk 0:02:55.8]} 3... Nc6 {[%clk 0:02:57.5]}
4. Bg2 {[%clk 0:02:56.1]} 4... a6 {[%clk 0:02:57]} 5. O-O {[%clk 0:02:53.5]}
5... d6 {[%clk 0:02:56.8]} 6. d4 {[%clk 0:02:49.9]} 6... cxd4 {[%clk 0:02:56.6]}
7. Nxd4 {[%clk 0:02:50.5]} 7... Qc7 {[%clk 0:02:54.4]} 8. Nc3 {[%clk 0:02:49.3]}
8... Bd7 {[%clk 0:02:54.1]} 9. Re1 {[%clk 0:02:49]} 9... Be7 {[%clk 0:02:54]}
10. h4 {[%clk 0:02:28.8]} 10... Nf6 {[%clk 0:02:52.3]} 11. Be3 {[%clk
0:02:20.3]} 11... O-O {[%clk 0:02:50.7]} 12. h5 {[%clk 0:02:18.7]} 12... b5
{[%clk 0:02:36.5]} 13. h6 {[%clk 0:02:18]} 13... g6 {[%clk 0:02:35.9]} 14. a4
{[%clk 0:02:14.2]} 14... b4 {[%clk 0:02:34.2]} 15. Nce2 {[%clk 0:02:03.3]} 15...
Rac8 {[%clk 0:02:28.4]} 16. Bg5 {[%clk 0:01:52.5]} 16... Ng4 {[%clk 0:01:57.3]}
17. Bxe7 {[%clk 0:01:45]} 17... Nxe7 {[%clk 0:01:56.6]} 18. Rc1 {[%clk
0:01:29.2]} 18... Bxa4 {[%clk 0:01:19.8]} 19. Qd2 {[%clk 0:01:13.4]} 19... e5
{[%clk 0:00:23.6]} 20. Nb3 {[%clk 0:00:54.7]} 20... Qb6 {[%clk 0:00:15.3]} 21.
Rf1 {[%clk 0:00:50.1]} 21... Bxb3 {[%clk 0:00:14.7]} 22. cxb3 {[%clk 0:00:49.6]}
22... Rxc1 {[%clk 0:00:12.3]} 23. Nxc1 {[%clk 0:00:48.7]} 23... f5 {[%clk
0:00:06.1]} 24. Qg5 {[%clk 0:00:47.2]} 24... Qc7 {[%clk 0:00:04.6]} 25. exf5
{[%clk 0:00:42.5]} 25... Nf6 {[%clk 0:00:01.1]} 26. fxg6 {[%clk 0:00:41.6]} 1-0

[Event "Late-Titled-Tuesday-Blitz-January-30-2024"]
[Site "Chess.com"]
[Date "2024.01.30"]
[Round "10"]
[White "ARTHURMOTIVATOR"]
[Black "bazar-wokzal"]
[Result "1-0"]
[WhiteElo "2356"]
[BlackElo "2586"]
[TimeControl "180+1"]
[EndTime "15:54:05 PST"]
[Termination "ARTHURMOTIVATOR won by checkmate"]

1. e4 {[%clk 0:02:51.5]} 1... Nc6 {[%clk 0:02:59.6]} 2. Nc3 {[%clk 0:02:48.9]}
2... Nf6 {[%clk 0:02:59.3]} 3. g3 {[%clk 0:02:46.7]} 3... d5 {[%clk 0:02:58.4]}
4. exd5 {[%clk 0:02:46.8]} 4... Nd4 {[%clk 0:02:58.7]} 5. Bg2 {[%clk 0:02:47.6]}
5... Bg4 {[%clk 0:02:58.4]} 6. f3 {[%clk 0:02:46.3]} 6... Bf5 {[%clk 0:02:58.6]}
7. d3 {[%clk 0:02:44.7]} 7... Nxd5 {[%clk 0:02:59]} 8. Nge2 {[%clk 0:02:40.2]}
8... e5 {[%clk 0:02:57.2]} 9. O-O {[%clk 0:02:36.6]} 9... Bc5 {[%clk 0:02:56.8]}
10. Kh1 {[%clk 0:02:34]} 10... O-O {[%clk 0:02:43.3]} 11. Nxd4 {[%clk
0:02:31.7]} 11... Bxd4 {[%clk 0:02:38.2]} 12. Nxd5 {[%clk 0:02:30.6]} 12... Qxd5
{[%clk 0:02:37.9]} 13. f4 {[%clk 0:02:30.3]} 13... Qe6 {[%clk 0:02:14.8]} 14. c3
{[%clk 0:02:24.1]} 14... Bb6 {[%clk 0:02:11.9]} 15. fxe5 {[%clk 0:02:22.9]}
15... Qxe5 {[%clk 0:02:07.4]} 16. Qf3 {[%clk 0:02:12.2]} 16... Bc8 {[%clk
0:01:49.4]} 17. Bf4 {[%clk 0:02:00.1]} 17... Qf5 {[%clk 0:01:41.1]} 18. Rae1
{[%clk 0:01:57]} 18... c6 {[%clk 0:01:37.2]} 19. Qe2 {[%clk 0:01:32.3]} 19...
Qe6 {[%clk 0:01:27.9]} 20. Qh5 {[%clk 0:01:08.1]} 20... Qxa2 {[%clk 0:01:15.4]}
21. c4 {[%clk 0:00:47.6]} 21... Be6 {[%clk 0:01:07.1]} 22. Be5 {[%clk
0:00:39.4]} 22... f6 {[%clk 0:00:56.1]} 23. Bxf6 {[%clk 0:00:25.7]} 23... Rxf6
{[%clk 0:00:54.9]} 24. Rxf6 {[%clk 0:00:20]} 24... gxf6 {[%clk 0:00:54.4]} 25.
Be4 {[%clk 0:00:18.3]} 25... f5 {[%clk 0:00:48.5]} 26. Qg5+ {[%clk 0:00:17.1]}
26... Kf7 {[%clk 0:00:43.9]} 27. Bxf5 {[%clk 0:00:17.2]} 27... Bxf5 {[%clk
0:00:32.8]} 28. Re7+ {[%clk 0:00:15.7]} 28... Kf8 {[%clk 0:00:32]} 29. Qg7#
{[%clk 0:00:15.7]} 1-0

[Event "Late-Titled-Tuesday-Blitz-January-30-2024"]
[Site "Chess.com"]
[Date "2024.01.30"]
[Round "10"]
[White "Sanyura"]
[Black "mbojan"]
[Result "0-1"]
[WhiteElo "2667"]
[BlackElo "2861"]
[TimeControl "180+1"]
[EndTime "15:54:06 PST"]
[Termination "mbojan won by resignation"]

1. e4 {[%clk 0:02:32.3]} 1... a6 {[%clk 0:02:49.7]} 2. d4 {[%clk 0:02:31.6]}
2... e6 {[%clk 0:02:49.1]} 3. Nf3 {[%clk 0:02:30.7]} 3... d5 {[%clk 0:02:49.4]}
4. Nc3 {[%clk 0:02:28.4]} 4... Nf6 {[%clk 0:02:46.6]} 5. Bg5 {[%clk 0:02:27.3]}
5... Be7 {[%clk 0:02:43]} 6. e5 {[%clk 0:02:26.1]} 6... Nfd7 {[%clk 0:02:42.6]}
7. h4 {[%clk 0:02:26.4]} 7... c5 {[%clk 0:02:42.4]} 8. Bd3 {[%clk 0:02:25.4]}
8... cxd4 {[%clk 0:02:40.9]} 9. Ne2 {[%clk 0:02:25.7]} 9... Nc6 {[%clk
0:02:40.9]} 10. Nexd4 {[%clk 0:02:24.2]} 10... Nxd4 {[%clk 0:02:36.3]} 11. Nxd4
{[%clk 0:02:25.1]} 11... Nxe5 {[%clk 0:02:20.5]} 12. Nf3 {[%clk 0:02:24.6]}
12... Nxf3+ {[%clk 0:02:17.7]} 13. Qxf3 {[%clk 0:02:24.2]} 13... Bxg5 {[%clk
0:02:17]} 14. hxg5 {[%clk 0:02:25.1]} 14... Qxg5 {[%clk 0:02:17.3]} 15. Rh5
{[%clk 0:02:21.1]} 15... Qf6 {[%clk 0:02:11.4]} 16. Qg3 {[%clk 0:02:21.4]} 16...
Qxb2 {[%clk 0:02:05.7]} 17. Rd1 {[%clk 0:02:20.2]} 17... Bd7 {[%clk 0:01:58.7]}
18. Rg5 {[%clk 0:02:15.4]} 18... g6 {[%clk 0:01:57.7]} 19. Re5 {[%clk
0:02:02.8]} 19... Bb5 {[%clk 0:01:39.9]} 20. Bxb5+ {[%clk 0:01:51.5]} 20... axb5
{[%clk 0:01:40.8]} 21. Rdxd5 {[%clk 0:01:34.6]} 21... O-O {[%clk 0:01:40.7]} 22.
Rd2 {[%clk 0:01:27.4]} 22... Rxa2 {[%clk 0:01:35.1]} 23. Qe3 {[%clk 0:01:26.7]}
23... Ra1+ {[%clk 0:01:26.5]} 24. Ke2 {[%clk 0:01:26.5]} 24... Qc1 {[%clk
0:01:26.6]} 25. Qd4 {[%clk 0:01:12.9]} 25... Qf1+ {[%clk 0:01:19.7]} 26. Kf3
{[%clk 0:01:12.1]} 26... Ra3+ {[%clk 0:01:18.8]} 27. c3 {[%clk 0:01:08.5]} 27...
Rc8 {[%clk 0:01:18.3]} 28. Rc5 {[%clk 0:01:04.9]} 28... Rxc5 {[%clk 0:00:56.4]}
29. Qxc5 {[%clk 0:01:05.8]} 29... Ra8 {[%clk 0:00:56.7]} 30. Rd7 {[%clk
0:00:56.4]} 30... Qc4 {[%clk 0:00:51.7]} 31. Rc7 {[%clk 0:00:27.9]} 31... Qxc5
{[%clk 0:00:36.2]} 32. Rxc5 {[%clk 0:00:28.8]} 32... Ra3 {[%clk 0:00:36.2]} 33.
Kg4 {[%clk 0:00:23.3]} 33... Ra4+ {[%clk 0:00:32.7]} 34. Kg3 {[%clk 0:00:23.2]}
34... Rc4 {[%clk 0:00:31.7]} 0-1

[Event "Late-Titled-Tuesday-Blitz-January-30-2024"]
[Site "Chess.com"]
[Date "2024.01.30"]
[Round "10"]
[White "djano"]
[Black "kai_nov"]
[Result "1-0"]
[WhiteElo "2625"]
[BlackElo "2334"]
[TimeControl "180+1"]
[EndTime "15:54:06 PST"]
[Termination "djano won on time"]

1. e4 {[%clk 0:02:59.2]} 1... c5 {[%clk 0:02:59.8]} 2. Nc3 {[%clk 0:02:55.2]}
2... Nc6 {[%clk 0:02:57.8]} 3. Bb5 {[%clk 0:02:55.3]} 3... Nd4 {[%clk
0:02:48.5]} 4. Nf3 {[%clk 0:02:55.4]} 4... e6 {[%clk 0:02:28.3]} 5. O-O {[%clk
0:02:54.1]} 5... a6 {[%clk 0:02:22.8]} 6. Bd3 {[%clk 0:02:54.2]} 6... Nc6 {[%clk
0:02:11.9]} 7. a3 {[%clk 0:02:54]} 7... g5 {[%clk 0:02:10.2]} 8. b4 {[%clk
0:02:52.5]} 8... cxb4 {[%clk 0:01:55.7]} 9. axb4 {[%clk 0:02:50.7]} 9... Nxb4
{[%clk 0:01:55.1]} 10. Be2 {[%clk 0:02:35.9]} 10... Bg7 {[%clk 0:01:46.2]} 11.
Ba3 {[%clk 0:02:33.4]} 11... Nc6 {[%clk 0:01:45.9]} 12. d4 {[%clk 0:02:17.4]}
12... g4 {[%clk 0:01:35.5]} 13. Ne5 {[%clk 0:02:17.9]} 13... Nxe5 {[%clk
0:01:31.7]} 14. dxe5 {[%clk 0:02:18.8]} 14... Bxe5 {[%clk 0:01:32]} 15. Qd3
{[%clk 0:02:16.4]} 15... Qc7 {[%clk 0:01:23.6]} 16. Bb4 {[%clk 0:02:01]} 16...
Rb8 {[%clk 0:01:09]} 17. Bxg4 {[%clk 0:01:55.5]} 17... Nf6 {[%clk 0:00:56.7]}
18. Be2 {[%clk 0:01:48.9]} 18... Bxh2+ {[%clk 0:00:55.8]} 19. Kh1 {[%clk
0:01:49]} 19... Be5 {[%clk 0:00:54.8]} 20. f4 {[%clk 0:01:46]} 20... Bxf4 {[%clk
0:00:44.3]} 21. Nd5 {[%clk 0:01:32.1]} 21... exd5 {[%clk 0:00:38.7]} 22. exd5
{[%clk 0:01:32.9]} 22... Qe5 {[%clk 0:00:14.2]} 23. Bc3 {[%clk 0:01:24.5]} 23...
Qg5 {[%clk 0:00:14.1]} 24. Rxf4 {[%clk 0:01:19.9]} 24... Qxf4 {[%clk 0:00:13.6]}
25. Rf1 {[%clk 0:01:20.5]} 25... Qh4+ {[%clk 0:00:12]} 26. Kg1 {[%clk
0:01:20.7]} 26... Ne4 {[%clk 0:00:04.5]} 27. Bxh8 {[%clk 0:01:13.1]} 27... Ng3
{[%clk 0:00:02.4]} 28. Qe3+ {[%clk 0:01:04.9]} 28... Kf8 {[%clk 0:00:02.7]} 29.
Bf6 {[%clk 0:00:41.8]} 1-0